fUST/lending_fUST_20260621
["ID","MTS","AMOUNT","RATE_DAILY","PERIOD"]
[425852526,1781998232000,-300.0,0.00018435,2]
[425852521,1781998232000,-301.226738,0.00017546,2]
[425852523,1781998232000,-403.88,0.00018426,3]
[425852529,1781998232000,-1494.59862493,0.00018436,2]
[425852525,1781998232000,-605.82,0.00018426,3]
[425852524,1781998232000,-201.94,0.00018426,3]
[425852527,1781998232000,-642.30962376,0.00018435,2]
[425852530,1781998232000,-2489.54782685,0.00018436,2]
[425852528,1781998232000,-815.83316182,0.00018436,2]
[425852531,1781998232000,-679.45363298,0.00018436,2]
[425852522,1781998232000,-167.0,0.00018301,3]
[425852570,1781998240000,-3509.84886387,0.00018436,2]
[425852569,1781998240000,-1439.22207948,0.00018436,2]
[425852568,1781998240000,-4008.12926576,0.00018436,2]
[425852563,1781998240000,-132055.69242226,0.00018436,2]
[425852571,1781998241000,-303.30071407,0.00018436,2]
[425852597,1781998246000,-427.18857391,0.00018436,2]
[425852598,1781998246000,-8304.92928315,0.00018436,2]
[425852679,1781999433000,-151.0,0.00016448,2]
[425852680,1781999433000,-217.269663,0.00016974,2]
[425852678,1781999433000,-151.0,0.00015954,2]
[425852682,1781999433000,-1000.0,0.00017179,2]
[425852686,1781999433000,-326.9920017,0.00018008,2]
[425852688,1781999433000,-326.9485734,0.00018008,2]
[425852701,1781999433000,-328.63213831,0.00018226,3]
[425852703,1781999433000,-253.96173067,0.00018226,3]
[425852695,1781999433000,-729.77640642,0.00018188,2]
[425852684,1781999433000,-326.9485734,0.00018008,2]
[425852698,1781999433000,-303.61613102,0.00018226,3]
[425852712,1781999433000,-500.0,0.00018235,2]
[425852693,1781999433000,-543.790377,0.00018073,2]
[425852697,1781999433000,-295.39,0.00018226,3]
[425852720,1781999433000,-500.0,0.00018235,2]
[425852723,1781999433000,-436.46751789,0.00018235,2]
[425852707,1781999433000,-500.0,0.00018235,2]
[425852716,1781999433000,-442.83795561,0.00018235,2]
[425852718,1781999433000,-500.0,0.00018235,2]
[425852709,1781999433000,-500.0,0.00018235,2]
[425852710,1781999433000,-500.0,0.00018235,2]
[425852705,1781999433000,-300.0,0.00018234,2]
[425852722,1781999433000,-500.0,0.00018235,2]
[425852714,1781999433000,-500.0,0.00018235,2]
[425852771,1781999440000,-20459.8958407,0.00018236,2]
[425852770,1781999440000,-273.55674963,0.00018235,2]
[425852769,1781999440000,-272.71800773,0.00018235,2]
[425852766,1781999440000,-232.46690615,0.00018235,2]
[425852768,1781999440000,-237.99938826,0.00018235,2]
[425852767,1781999440000,-262.00061174,0.00018235,2]
[425852765,1781999440000,-63.53248211,0.00018235,2]
[425852780,1781999443000,-695.7,0.00018236,2]
[425852779,1781999443000,-620.51122382,0.00018236,2]
[425852782,1781999443000,-3702.75647797,0.00018236,2]
[425852785,1781999443000,-5589.94012964,0.00018236,2]
[425852783,1781999443000,-1836.25124201,0.00018236,2]
[425852786,1781999443000,-15143.53395227,0.00018236,2]
[425852784,1781999443000,-7226.84326751,0.00018236,2]
[425852781,1781999443000,-1172.17607391,0.00018236,2]
[425852800,1781999446000,-221133.75637857,0.00018236,2]
[425852798,1781999446000,-978.61104329,0.00018236,2]
[425852799,1781999446000,-670.22,0.00018236,2]
[425852853,1781999860000,535.91517285,7.6e-05,2]
[425852910,1782000632000,-550.69280943,0.000159,2]
[425852903,1782000632000,-5000.0,0.00012007,2]
[425852906,1782000632000,-1670.52085702,0.000125,2]
[425852908,1782000632000,-219.63212958,0.00014036,7]
[425852916,1782000632000,-191.5792923,0.00016419,2]
[425852914,1782000632000,-698.693139,0.00016343,2]
[425852918,1782000632000,-300.0,0.00016437,2]
[425852920,1782000632000,-159.57931903,0.00016438,2]
[425852912,1782000632000,-156.2446274,0.000159,2]
[425852999,1782000638000,-156.2446274,0.00016438,2]
[425853001,1782000638000,-222.340271,0.00016552,2]
[425853003,1782000638000,-550.69280943,0.00016772,2]
[425853004,1782000638000,-156.2446274,0.00016772,2]
[425852997,1782000638000,-391.1134904,0.00016438,2]
[425853032,1782000639000,-326.9485734,0.00018004,2]
[425853006,1782000639000,-262.45,0.00017081,2]
[425853008,1782000639000,-458.0290866,0.00017182,2]
[425853010,1782000639000,-550.69280943,0.00017501,2]
[425853012,1782000639000,-315.97902845,0.00017917,2]
[425853016,1782000639000,-1011.13289105,0.00017917,2]
[425853014,1782000639000,-568.76225121,0.00017917,2]
[425853019,1782000639000,-1578.31524712,0.00017917,2]
[425853030,1782000639000,-457.5164001,0.00018004,2]
[425853022,1782000639000,-338.82530338,0.00017917,2]
[425853026,1782000639000,-785.34040557,0.00017961,2]
[425853025,1782000639000,-386.84168923,0.00017917,2]
[425853056,1782000639000,-2230.62721332,0.00018035,2]
[425853034,1782000639000,-326.9485734,0.00018004,2]
[425853058,1782000639000,-147222.47824097,0.00018036,2]
[425853050,1782000639000,-500.0,0.00018035,2]
[425853028,1782000639000,-329.5957291,0.00017995,2]
[425853054,1782000639000,-502.93837888,0.00018035,2]
[425853052,1782000639000,-500.0,0.00018035,2]
[425853046,1782000639000,-303.60743402,0.00018035,2]
[425853048,1782000639000,-326.98199507,0.00018035,2]
[425853044,1782000639000,-590.78,0.00018026,3]
[425853042,1782000639000,-215.04220334,0.00018026,3]
[425853040,1782000639000,-458.0290866,0.00018008,2]
[425853036,1782000639000,-326.9485734,0.00018004,2]
[425853038,1782000639000,-458.0290866,0.00018008,2]
[425853141,1782000646000,-1352.28182446,0.00018036,2]
[425853188,1782001831000,-5000.0,0.00012677,2]
[425853197,1782001831000,-300.0,0.00014196,2]
[425853199,1782001831000,-162.54539098,0.00014197,2]
[425853190,1782001831000,-5000.0,0.00012805,2]
[425853206,1782001831000,-222.340271,0.0001551,2]
[425853204,1782001831000,-500.0,0.00015055,2]
[425853202,1782001831000,-792.736077,0.00014936,2]
[425853201,1782001831000,-240.0,0.00014302,2]
[425853215,1782001831000,-965.72371376,0.00016458,2]
[425853213,1782001831000,-543.21958899,0.00016458,2]
[425853217,1782001831000,-1508.94330275,0.00016458,2]
[425853225,1782001831000,-298.56604917,0.000169,2]
[425853219,1782001831000,-2170.7054776,0.00016458,2]
[425853211,1782001831000,-301.78866055,0.00016458,2]
[425853221,1782001831000,-500.0,0.00016598,2]
[425853223,1782001831000,-86.08537275,0.000169,2]
[425853208,1782001831000,-500.0,0.00015807,2]
[425853790,1782001840000,-325.92220404,0.00017735,2]
[425853781,1782001840000,-310.9212507,0.00016458,2]
[425853783,1782001840000,-559.65825127,0.00016458,2]
[425853785,1782001840000,-109.24857808,0.000169,2]
[425853787,1782001840000,-252.59417666,0.0001709,2]
[425853788,1782001840000,-1553.05164727,0.00017324,2]
[425853797,1782001840000,-500.0,0.00017735,2]
[425853792,1782001840000,-500.0,0.00017735,2]
[425853794,1782001840000,-500.0,0.00017735,2]
[425853799,1782001840000,-500.0,0.00017735,2]
[425853803,1782001840000,-314.27057511,0.00017735,2]
[425853806,1782001840000,-500.0,0.00017735,2]
[425853808,1782001840000,-297.23132094,0.00017735,2]
[425853813,1782001840000,-232487.26738028,0.00017736,2]
[425853795,1782001840000,-500.0,0.00017735,2]
[425853811,1782001840000,-175.23518417,0.00017735,2]
[425853819,1782001841000,-320.84573308,0.00017736,2]
[425854090,1782001846000,-994.94800225,0.00016458,2]
[425854092,1782001846000,-3231.85347411,0.00017636,2]
[425854091,1782001846000,-500.0,0.00017323,2]
[425854089,1782001846000,-379.40106256,0.00016293,2]
[425854119,1782003026000,72000.0,0.0001629,30]
[425854125,1782003031000,-2692.05,0.00013614,2]
[425854124,1782003031000,-492.63814366,0.00013614,2]
[425854126,1782003031000,-518.42331576,0.00013614,2]
[425854131,1782003031000,-500.0,0.00015807,2]
[425854128,1782003031000,-3693.83640766,0.00013752,2]
[425854129,1782003031000,-162.74699532,0.00014891,2]
[425854127,1782003031000,-863.43043051,0.00013614,2]
[425854130,1782003031000,-360.0,0.00015055,2]
[425854133,1782003031000,-831.263225,0.00016385,2]
[425854132,1782003031000,-202.827296,0.00015917,2]
[425854156,1782003032000,-500.0,0.00017535,2]
[425854158,1782003032000,-500.0,0.00017535,2]
[425854154,1782003032000,-500.0,0.00017535,2]
[425854152,1782003032000,-179.097,0.00017535,2]
[425854151,1782003032000,-170.65,0.00017424,2]
[425854149,1782003032000,-500.0,0.00017323,2]
[425854150,1782003032000,-322.08213568,0.00017323,2]
[425854148,1782003032000,-500.0,0.00017323,2]
[425854146,1782003032000,-500.0,0.00017323,2]
[425854147,1782003032000,-500.0,0.00017323,2]
[425854144,1782003032000,-500.0,0.00017323,2]
[425854140,1782003032000,-458.0290866,0.00017186,2]
[425854141,1782003032000,-458.0290866,0.00017186,2]
[425854142,1782003032000,-458.0290866,0.00017186,2]
[425854143,1782003032000,-454.113971,0.00017186,2]
[425854139,1782003032000,-458.0290866,0.00017182,2]
[425854138,1782003032000,-458.0970838,0.00017182,2]
[425854155,1782003032000,-500.0,0.00017535,2]
[425854136,1782003032000,-458.0290866,0.00017182,2]
[425854135,1782003032000,-235.13,0.00016494,2]
[425854137,1782003032000,-457.8996078,0.00017182,2]
[425854134,1782003032000,-1000.0,0.0001645,2]
[425854145,1782003032000,-500.0,0.00017323,2]
[425854153,1782003032000,-500.0,0.00017535,2]
[425854180,1782003032000,-600.0,0.00017987,2]
[425854160,1782003032000,-500.0,0.00017634,2]
[425854157,1782003032000,-500.0,0.00017535,2]
[425854183,1782003032000,-426.24332896,0.00018004,2]
[425854182,1782003032000,-458.0290866,0.00018004,2]
[425854179,1782003032000,-636.46,0.00017934,2]
[425854181,1782003032000,-457.1900887,0.00017995,2]
[425854178,1782003032000,-500.0,0.00017934,2]
[425854177,1782003032000,-493.9,0.000179,2]
[425854176,1782003032000,-190.24,0.00017898,2]
[425854174,1782003032000,-500.93445137,0.00017735,2]
[425854175,1782003032000,-500.0,0.00017871,2]
[425854173,1782003032000,-502.67270164,0.00017735,2]
[425854172,1782003032000,-186.31376658,0.00017735,2]
[425854169,1782003032000,-500.0,0.00017735,2]
[425854162,1782003032000,-500.0,0.00017634,2]
[425854171,1782003032000,-302.16,0.00017735,2]
[425854163,1782003032000,-500.0,0.00017634,2]
[425854161,1782003032000,-500.0,0.00017634,2]
[425854159,1782003032000,-500.0,0.00017597,2]
[425854165,1782003032000,-500.0,0.00017634,2]
[425854166,1782003032000,-815.61064858,0.00017635,2]
[425854167,1782003032000,-172.97,0.0001764,2]
[425854168,1782003032000,-500.0,0.00017735,2]
[425854170,1782003032000,-500.0,0.00017735,2]
[425854164,1782003032000,-231.24142281,0.00017634,2]
[425854203,1782003038000,-229.17208305,0.00018235,2]
[425854196,1782003038000,-31.78575764,0.00018004,2]
[425854197,1782003038000,-458.0290866,0.00018004,2]
[425854198,1782003038000,-150.47,0.0001816,2]
[425854200,1782003038000,-500.0,0.00018234,2]
[425854201,1782003038000,-500.0,0.00018234,2]
[425854202,1782003038000,-500.0,0.00018234,2]
[425854205,1782003038000,-733.35066576,0.00018235,2]
[425854204,1782003038000,-412.50974949,0.00018235,2]
[425854199,1782003038000,-500.0,0.00018208,2]
[425854208,1782003038000,-323.56576571,0.00018235,2]
[425854210,1782003038000,-582.41837828,0.00018235,2]
[425854211,1782003038000,-1035.41045027,0.00018235,2]
[425854213,1782003038000,-382.58082846,0.00018235,2]
[425854212,1782003038000,-1616.21099972,0.00018235,2]
[425854214,1782003038000,-815.61064858,0.00018375,2]
[425854215,1782003038000,-605.04,0.00018422,3]
[425854217,1782003038000,-809791.08126038,0.00018432,2]
[425854216,1782003038000,-164536.61559658,0.00018432,2]
[425854206,1782003038000,-1144.71455483,0.00018235,2]
[425854363,1782003068000,192.7424833,0.00023248,120]
[425854385,1782003673000,-156.0,0.0001277,2]
[425854386,1782003689000,-3778.08482425,0.0001287,2]
[425854387,1782003706000,-156.0,0.0001287,2]
[425854389,1782003723000,-300.0,0.00012999,2]
[425854391,1782003740000,-1065.91517575,0.0001287,2]
[425854392,1782003756000,-2868.1696485,0.00013,2]
[425854473,1782004232000,-410.93143287,0.00013,2]
[425854488,1782004232000,-1270.23292712,0.00013,2]
[425854630,1782004238000,-500.0,0.00017534,2]
[425854625,1782004238000,-500.0,0.00017534,2]
[425854623,1782004238000,-500.0,0.00017533,2]
[425854624,1782004238000,-178.97516307,0.00017534,2]
[425854616,1782004238000,-156.3153327,0.000171,2]
[425854626,1782004238000,-151.24028695,0.00017534,2]
[425854620,1782004238000,-500.0,0.00017533,2]
[425854622,1782004238000,-546.91521672,0.00017533,2]
[425854621,1782004238000,-500.0,0.00017533,2]
[425854617,1782004238000,-156.31533268,0.000171,2]
[425854615,1782004238000,-364.73577626,0.000171,2]
[425854581,1782004238000,-352.54192613,0.00013,2]
[425854605,1782004238000,-5164.08553022,0.00015,2]
[425854614,1782004238000,-364.73577626,0.000171,2]
[425854613,1782004238000,-364.73577628,0.000171,2]
[425854612,1782004238000,-178.97516307,0.00016986,2]
[425854611,1782004238000,-2763.6566423,0.00016316,2]
[425854610,1782004238000,-162.261836,0.00016184,2]
[425854607,1782004238000,-191.5792923,0.0001605,2]
[425854608,1782004238000,-804.522962,0.00016136,2]
[425854606,1782004238000,-300.23476553,0.00015,14]
[425854602,1782004238000,-162.61543819,0.00014,2]
[425854603,1782004238000,-322.08213568,0.0001411,2]
[425854632,1782004238000,-502.7243509,0.00017534,2]
[425854599,1782004238000,-300.0,0.00013259,2]
[425854618,1782004238000,-156.31533268,0.000171,2]
[425854628,1782004238000,-500.0,0.00017534,2]
[425854597,1782004238000,-1528.69825334,0.00013,2]
[425854631,1782004238000,-503.8352966,0.00017534,2]
[425854627,1782004238000,-500.0,0.00017534,2]
[425854654,1782004238000,-682.49687078,0.00018035,2]
[425854657,1782004238000,-228.14554283,0.00018231,2]
[425854653,1782004238000,-437.23523253,0.00018035,2]
[425854655,1782004238000,-206.63287922,0.00018068,2]
[425854656,1782004238000,-1388.17572294,0.0001818,2]
[425854650,1782004238000,-326.9485734,0.00017975,2]
[425854652,1782004238000,-326.9485734,0.00017975,2]
[425854648,1782004238000,-326.9485734,0.00017975,2]
[425854649,1782004238000,-326.9485734,0.00017975,2]
[425854651,1782004238000,-326.9485734,0.00017975,2]
[425854647,1782004238000,-326.7836688,0.00017975,2]
[425854646,1782004238000,-261.779491,0.00017975,2]
[425854619,1782004238000,-160.0,0.00017229,2]
[425854644,1782004238000,-500.0,0.00017974,2]
[425854640,1782004238000,-500.0,0.00017535,2]
[425854643,1782004238000,-500.0,0.00017974,2]
[425854642,1782004238000,-310.5,0.00017808,2]
[425854636,1782004238000,-504.77330457,0.00017534,2]
[425854645,1782004238000,-500.0,0.00017974,2]
[425854638,1782004238000,-500.0,0.00017534,2]
[425854639,1782004238000,-161.78465718,0.00017535,2]
[425854637,1782004238000,-500.0,0.00017534,2]
[425854635,1782004238000,-500.0,0.00017534,2]
[425854634,1782004238000,-500.0,0.00017534,2]
[425854633,1782004238000,-500.0,0.00017534,2]
[425854629,1782004238000,-500.0,0.00017534,2]
[425854641,1782004238000,-500.0,0.00017535,2]
[425854658,1782004239000,-1149.89998053,0.00018232,2]
[425854659,1782004239000,-2546.56564369,0.00018232,2]
[425854954,1782004243000,-4555.31263849,0.00018232,2]
[425854949,1782004243000,-1779.32204679,0.00018232,2]
[425854969,1782004246000,-302.0,0.00018232,2]
[425854968,1782004246000,-3846.3909148,0.00018232,2]
[425854967,1782004246000,-1150.08766105,0.00018232,2]
[425855079,1782005432000,-703.49973567,0.00012484,2]
[425855083,1782005432000,-162.26626036,0.00013359,2]
[425855081,1782005432000,-151.0,0.0001261,2]
[425855090,1782005432000,-788.328601,0.00016601,2]
[425855096,1782005432000,-326.9485734,0.00017153,2]
[425855088,1782005432000,-170.654399,0.0001656,2]
[425855086,1782005432000,-492.2308071,0.00016495,2]
[425855094,1782005432000,-263.27116209,0.00017132,2]
[425855092,1782005432000,-3971.1534256,0.00016821,2]
[425855085,1782005432000,-1187.4325772,0.00016493,2]
[425855102,1782005432000,-160.0,0.00017234,2]
[425855104,1782005432000,-156.49650075,0.00017403,2]
[425855106,1782005432000,-157.71973597,0.00017872,2]
[425855100,1782005432000,-328.1957491,0.00017153,2]
[425855116,1782005432000,-5236.20048407,0.00017932,2]
[425855110,1782005432000,-20554.49262058,0.00017932,2]
[425855098,1782005432000,-325.9284279,0.00017153,2]
[425855108,1782005432000,-500.0,0.00017921,2]
[425855119,1782005432000,-449.60935673,0.00017932,2]
[425855121,1782005432000,-4487.29818282,0.00017932,2]
[425855274,1782005439000,-48269.47447568,0.00017932,2]
[425855799,1782005446000,-3842.38983222,0.00017932,2]
[425855987,1782005723000,160.0,0.0002,120]
[425856049,1782006632000,-3209.99999995,0.00015063,2]
[425856047,1782006632000,-511.2604984,0.00015063,2]
[425856065,1782006632000,-4163.98261114,0.00015215,2]
[425856063,1782006632000,-1278.73950165,0.00015063,2]
[425856390,1782006639000,-500.0,0.00017152,2]
[425856395,1782006639000,-458.0290866,0.00017153,2]
[425856397,1782006639000,-458.0290866,0.00017153,2]
[425856399,1782006639000,-459.2762998,0.00017153,2]
[425856401,1782006639000,-458.0290866,0.00017153,2]
[425856385,1782006639000,-500.0,0.00017152,2]
[425856396,1782006639000,-458.0290866,0.00017153,2]
[425856398,1782006639000,-458.0290866,0.00017153,2]
[425856403,1782006639000,-371.56724342,0.00017195,2]
[425856394,1782006639000,-458.0290866,0.00017153,2]
[425856400,1782006639000,-462.6315479,0.00017153,2]
[425856402,1782006639000,-500.0,0.00017165,2]
[425856405,1782006639000,-500.0,0.00017248,2]
[425856410,1782006639000,-500.0,0.00017248,2]
[425856414,1782006639000,-500.0,0.00017248,2]
[425856408,1782006639000,-500.0,0.00017248,2]
[425856412,1782006639000,-608.81363801,0.00017248,2]
[425856407,1782006639000,-202.92501566,0.00017248,2]
[425856416,1782006639000,-500.0,0.00017248,2]
[425856413,1782006639000,-500.0,0.00017248,2]
[425856411,1782006639000,-500.0,0.00017248,2]
[425856415,1782006639000,-500.0,0.00017248,2]
[425856409,1782006639000,-500.0,0.00017248,2]
[425856417,1782006639000,-500.0,0.00017248,2]
[425856419,1782006639000,-503.87332514,0.00017248,2]
[425856387,1782006639000,-500.0,0.00017152,2]
[425856404,1782006639000,-500.0,0.00017248,2]
[425856389,1782006639000,-500.0,0.00017152,2]
[425856364,1782006639000,-151.0,0.00015524,2]
[425856392,1782006639000,-500.0,0.00017152,2]
[425856372,1782006639000,-500.0,0.00016438,2]
[425856362,1782006639000,-381.61724457,0.00015063,2]
[425856363,1782006639000,-836.01738886,0.00015215,2]
[425856368,1782006639000,-172.3214525,0.00016242,2]
[425856418,1782006639000,-500.0,0.00017248,2]
[425856370,1782006639000,-330.7702684,0.00016331,2]
[425856366,1782006639000,-183.5455115,0.00015912,2]
[425856371,1782006639000,-287.87653576,0.00016335,2]
[425856365,1782006639000,-10105.0612081,0.00015875,2]
[425856369,1782006639000,-326.9485734,0.00016331,2]
[425856367,1782006639000,-717.198806,0.00016159,2]
[425856376,1782006639000,-262.02300829,0.00016891,2]
[425856391,1782006639000,-500.0,0.00017152,2]
[425856378,1782006639000,-601.99664657,0.000171,2]
[425856377,1782006639000,-211.08175136,0.00017027,2]
[425856374,1782006639000,-500.0,0.00016617,2]
[425856379,1782006639000,-160.0,0.00017127,3]
[425856375,1782006639000,-500.0,0.00016891,2]
[425856380,1782006639000,-326.8999503,0.0001715,2]
[425856381,1782006639000,-500.0,0.00017151,2]
[425856383,1782006639000,-500.0,0.00017151,2]
[425856393,1782006639000,-458.0970838,0.00017153,2]
[425856382,1782006639000,-500.0,0.00017151,2]
[425856386,1782006639000,-572.50619027,0.00017152,2]
[425856384,1782006639000,-543.42084378,0.00017151,2]
[425856388,1782006639000,-500.0,0.00017152,2]
[425856373,1782006639000,-500.0,0.00016617,2]
[425856420,1782006639000,-500.0,0.00017248,2]
[425856406,1782006639000,-500.0,0.00017248,2]
[425856428,1782006639000,-509.00585494,0.00017248,2]
[425856451,1782006639000,-500.0,0.00017248,2]
[425856454,1782006639000,-500.0,0.00017248,2]
[425856455,1782006639000,-500.0,0.00017248,2]
[425856466,1782006639000,-500.0,0.00017248,2]
[425856465,1782006639000,-506.05258044,0.00017248,2]
[425856457,1782006639000,-500.0,0.00017248,2]
[425856456,1782006639000,-532.50878055,0.00017248,2]
[425856458,1782006639000,-500.0,0.00017248,2]
[425856463,1782006639000,-500.0,0.00017248,2]
[425856459,1782006639000,-500.0,0.00017248,2]
[425856460,1782006639000,-500.0,0.00017248,2]
[425856461,1782006639000,-500.0,0.00017248,2]
[425856462,1782006639000,-500.0,0.00017248,2]
[425856464,1782006639000,-500.0,0.00017248,2]
[425856468,1782006639000,-160.0,0.0001725,4]
[425856467,1782006639000,-6447.16947985,0.00017249,2]
[425856470,1782006639000,-500.0,0.00017426,2]
[425856471,1782006639000,-500.0,0.00017426,2]
[425856472,1782006639000,-500.0,0.00017426,2]
[425856469,1782006639000,-160.0,0.00017372,5]
[425856474,1782006639000,-510.02206483,0.00017426,2]
[425856478,1782006639000,-480.82036442,0.00017521,2]
[425856477,1782006639000,-160.0,0.00017495,6]
[425856479,1782006639000,-506.428049,0.00017522,2]
[425856475,1782006639000,-500.0,0.00017426,2]
[425856429,1782006639000,-500.0,0.00017248,2]
[425856473,1782006639000,-500.0,0.00017426,2]
[425856443,1782006639000,-500.0,0.00017248,2]
[425856450,1782006639000,-907.27,0.00017248,2]
[425856476,1782006639000,-221.10493387,0.00017432,2]
[425856452,1782006639000,-500.0,0.00017248,2]
[425856453,1782006639000,-500.0,0.00017248,2]
[425856425,1782006639000,-500.0,0.00017248,2]
[425856426,1782006639000,-500.0,0.00017248,2]
[425856427,1782006639000,-500.0,0.00017248,2]
[425856421,1782006639000,-500.0,0.00017248,2]
[425856423,1782006639000,-500.0,0.00017248,2]
[425856422,1782006639000,-500.0,0.00017248,2]
[425856431,1782006639000,-500.0,0.00017248,2]
[425856440,1782006639000,-500.0,0.00017248,2]
[425856433,1782006639000,-500.0,0.00017248,2]
[425856430,1782006639000,-500.0,0.00017248,2]
[425856439,1782006639000,-1000.0,0.00017248,2]
[425856441,1782006639000,-500.0,0.00017248,2]
[425856424,1782006639000,-523.61071106,0.00017248,2]
[425856434,1782006639000,-500.0,0.00017248,2]
[425856447,1782006639000,-500.0,0.00017248,2]
[425856449,1782006639000,-500.0,0.00017248,2]
[425856448,1782006639000,-500.0,0.00017248,2]
[425856432,1782006639000,-1371.39,0.00017248,2]
[425856444,1782006639000,-500.0,0.00017248,2]
[425856446,1782006639000,-500.0,0.00017248,2]
[425856442,1782006639000,-500.0,0.00017248,2]
[425856437,1782006639000,-500.0,0.00017248,2]
[425856435,1782006639000,-500.0,0.00017248,2]
[425856438,1782006639000,-500.0,0.00017248,2]
[425856436,1782006639000,-500.0,0.00017248,2]
[425856445,1782006639000,-500.0,0.00017248,2]
[425856514,1782006640000,-500.0,0.00017522,2]
[425856513,1782006640000,-590.91546602,0.00017522,2]
[425856521,1782006640000,-500.0,0.00017522,2]
[425856516,1782006640000,-500.0,0.00017522,2]
[425856517,1782006640000,-500.0,0.00017522,2]
[425856511,1782006640000,-500.0,0.00017522,2]
[425856510,1782006640000,-500.0,0.00017522,2]
[425856518,1782006640000,-512.03912559,0.00017522,2]
[425856520,1782006640000,-624.7696561,0.00017522,2]
[425856509,1782006640000,-500.0,0.00017522,2]
[425856515,1782006640000,-500.0,0.00017522,2]
[425856512,1782006640000,-509.88823889,0.00017522,2]
[425856535,1782006640000,-532.3771824,0.00017548,2]
[425856522,1782006640000,-516.51822811,0.00017522,2]
[425856523,1782006640000,-536.6119028,0.00017522,2]
[425856536,1782006640000,-151.0,0.000176,2]
[425856534,1782006640000,-504.49391983,0.00017534,2]
[425856533,1782006640000,-506.77446244,0.00017534,2]
[425856527,1782006640000,-500.0,0.00017522,2]
[425856528,1782006640000,-500.0,0.00017522,2]
[425856532,1782006640000,-90248.43916997,0.00017532,2]
[425856531,1782006640000,-500.0,0.00017522,2]
[425856524,1782006640000,-566.54161037,0.00017522,2]
[425856508,1782006640000,-500.0,0.00017522,2]
[425856526,1782006640000,-508.92843364,0.00017522,2]
[425856519,1782006640000,-500.0,0.00017522,2]
[425856506,1782006640000,-1000.0,0.00017522,2]
[425856492,1782006640000,-575.01943197,0.00017522,2]
[425856505,1782006640000,-509.98322858,0.00017522,2]
[425856530,1782006640000,-508.4756631,0.00017522,2]
[425856484,1782006640000,-500.0,0.00017522,2]
[425856480,1782006640000,-425.56178284,0.00017522,2]
[425856490,1782006640000,-500.0,0.00017522,2]
[425856483,1782006640000,-500.0,0.00017522,2]
[425856485,1782006640000,-500.0,0.00017522,2]
[425856481,1782006640000,-500.0,0.00017522,2]
[425856482,1782006640000,-504.9641937,0.00017522,2]
[425856489,1782006640000,-500.0,0.00017522,2]
[425856487,1782006640000,-500.0,0.00017522,2]
[425856488,1782006640000,-500.0,0.00017522,2]
[425856491,1782006640000,-500.0,0.00017522,2]
[425856486,1782006640000,-500.0,0.00017522,2]
[425856496,1782006640000,-500.0,0.00017522,2]
[425856493,1782006640000,-500.0,0.00017522,2]
[425856494,1782006640000,-500.0,0.00017522,2]
[425856495,1782006640000,-500.0,0.00017522,2]
[425856497,1782006640000,-500.0,0.00017522,2]
[425856498,1782006640000,-500.0,0.00017522,2]
[425856501,1782006640000,-500.0,0.00017522,2]
[425856499,1782006640000,-500.0,0.00017522,2]
[425856503,1782006640000,-500.0,0.00017522,2]
[425856502,1782006640000,-500.0,0.00017522,2]
[425856500,1782006640000,-508.63338962,0.00017522,2]
[425856504,1782006640000,-500.0,0.00017522,2]
[425856507,1782006640000,-503.81240515,0.00017522,2]
[425856529,1782006640000,-506.72477685,0.00017522,2]
[425856584,1782006640000,-151.0,0.00017631,2]
[425856537,1782006640000,-160.0,0.00017617,7]
[425856570,1782006640000,-1371.39,0.00017631,2]
[425856572,1782006640000,-1371.39,0.00017631,2]
[425856573,1782006640000,-1371.39,0.00017631,2]